bitfinex-derivatives/quotes_BTCF0:USTF0_20251103
["timestamp","ask_amount","ask_price","bid_price","bid_amount"]
[1762204831535,0.1383948,106480.0,106470.0,0.51893805]
[1762204831742,0.23562543,106480.0,106470.0,0.001]
[1762204831932,0.64088543,106480.0,106470.0,0.001]
[1762204832128,0.5085048,106480.0,106470.0,0.1400536]
[1762204832333,0.18615063,106480.0,106470.0,0.5008536]
[1762204832532,0.17684063,106480.0,106470.0,0.5008536]
[1762204832736,0.1383916,106490.0,106480.0,0.1522748]
[1762204832934,0.63157223,106490.0,106480.0,0.05834]
[1762204833236,0.63157223,106490.0,106480.0,0.04511]
[1762204833440,0.1383948,106480.0,106470.0,0.1400487]
[1762204833634,0.63157543,106480.0,106470.0,0.1390487]
[1762204834644,0.4991948,106480.0,106470.0,0.1390487]
[1762204834843,0.27077543,106480.0,106470.0,0.1390487]
[1762204835044,0.27077543,106480.0,106470.0,0.1400487]
[1762204835247,0.27077543,106480.0,106470.0,0.19057845]
[1762204835838,0.27077543,106480.0,106470.0,0.09663975]
[1762204836036,0.27077543,106480.0,106470.0,0.19058345]
[1762204836436,0.1383948,106480.0,106470.0,0.19058345]
[1762204836637,0.27077543,106480.0,106470.0,0.19058345]
[1762204837042,0.27998416,106480.0,106470.0,0.19058345]
[1762204837753,0.64078416,106480.0,106470.0,0.19058345]
[1762204838041,0.65009416,106480.0,106470.0,0.09663975]
[1762204838443,0.97909416,106480.0,106470.0,0.05152975]
[1762204838644,0.97909416,106480.0,106470.0,0.001]
[1762204839352,0.04446,106460.0,106450.0,0.20603871]
[1762204839641,0.27079313,106460.0,106450.0,0.20603871]
[1762204840148,0.1384125,106460.0,106450.0,0.20603871]
[1762204840744,0.27079313,106460.0,106450.0,0.04511]
[1762204840943,0.63159313,106460.0,106450.0,0.1390714]
[1762204841138,0.1384125,106460.0,106450.0,0.1390714]
[1762204841444,0.04446,106460.0,106450.0,0.1390714]
[1762204841644,0.04446,106450.0,106440.0,0.58072401]
[1762204842448,0.7836706,106470.0,106440.0,0.58072401]
[1762204842449,0.4992106,106470.0,106460.0,0.1522926]
[1762204842745,0.96055123,106470.0,106460.0,0.1522926]
[1762204843145,0.96055123,106470.0,106460.0,0.1390626]
[1762204843451,0.96055123,106470.0,106460.0,0.04511]
[1762204843650,0.96055123,106470.0,106450.0,0.0939545]
[1762204843651,0.1384126,106460.0,106450.0,0.1390645]
[1762204843847,0.28234323,106460.0,106450.0,0.0939545]
[1762204844049,0.28234323,106460.0,106450.0,0.0939614]
[1762204844254,0.1384214,106450.0,106440.0,0.5137539]
[1762204844845,0.04446,106450.0,106440.0,0.5137539]
[1762204845250,0.1384214,106450.0,106440.0,0.5137539]
[1762204846746,0.1384214,106450.0,106440.0,0.5147539]
[1762204847553,0.63278943,106460.0,106450.0,0.1393113]
[1762204848355,0.64433943,106460.0,106450.0,0.1393113]
[1762204848549,0.1396113,106450.0,106440.0,0.5149939]
[1762204849352,0.04565,106450.0,106440.0,0.5149939]
[1762204849547,0.1396112,106450.0,106440.0,0.5149939]
[1762204849855,0.1396112,106450.0,106440.0,0.5139939]
[1762204850656,0.1396112,106450.0,106440.0,0.5149939]
[1762204852451,0.04565,106450.0,106440.0,0.5149939]
[1762204853158,0.1396113,106450.0,106440.0,0.5149939]
[1762204853557,0.04565,106450.0,106440.0,0.5149939]
[1762204854360,0.1396113,106450.0,106440.0,0.5149939]
[1762204855055,0.04565,106450.0,106440.0,0.5149939]
[1762204855359,0.1396113,106450.0,106440.0,0.5149939]
[1762204855759,0.04565,106450.0,106440.0,0.5149939]
[1762204857755,0.97457663,106470.0,106460.0,0.1528124]
[1762204857956,0.61377663,106470.0,106460.0,0.1528124]
[1762204858152,0.97457663,106470.0,106460.0,0.1528124]
[1762204858559,0.97457663,106470.0,106450.0,0.152818]
[1762204858560,0.1396024,106460.0,106450.0,0.152818]
[1762204858758,0.27198303,106460.0,106450.0,0.152818]
[1762204860055,0.27198303,106460.0,106450.0,0.481498]
[1762204860455,0.17803063,106460.0,106450.0,0.481498]
[1762204860851,0.28266303,106460.0,106450.0,0.481498]
[1762204861060,0.65274703,106460.0,106450.0,0.04535]
[1762204861760,0.5096864,106460.0,106450.0,0.1528213]
[1762204861957,0.65274703,106460.0,106450.0,0.1393113]
[1762204862263,0.65274703,106460.0,106450.0,0.04535]
[1762204862664,0.02326,106450.0,106440.0,0.34256]
[1762204862852,0.1489301,106440.0,106430.0,0.06708176]
[1762204863053,0.64211073,106440.0,106430.0,0.00011425]
[1762204863458,0.64211073,106440.0,106430.0,0.13944325]
[1762204863763,0.64111073,106440.0,106430.0,0.00011425]
[1762204863961,0.64111073,106440.0,106430.0,0.02319425]
[1762204864161,0.64111073,106440.0,106430.0,0.00011425]
[1762204864363,0.0572,106410.0,106400.0,0.08370938]
[1762204864661,0.1489655,106400.0,106390.0,0.06750379]
[1762204864966,0.1517843,106390.0,106380.0,0.00310194]
[1762204865154,0.61280493,106390.0,106380.0,0.00310194]
[1762204865358,0.04565,106370.0,106360.0,0.5137007]
[1762204865566,0.17803063,106370.0,106360.0,0.5137007]
[1762204865962,0.63286263,106370.0,106360.0,0.05886]
[1762204866163,0.96154263,106370.0,106360.0,0.05886]
[1762204866368,0.1396908,106360.0,106350.0,0.05886]
[1762204866670,0.1396996,106350.0,106340.0,0.06196311]
[1762204866862,0.96156023,106350.0,106340.0,0.06196311]
[1762204867062,0.86551063,106350.0,106340.0,0.15602151]
[1762204867468,0.50471063,106350.0,106340.0,0.15602151]
[1762204867768,0.01926,106350.0,106340.0,0.51682151]
[1762204868563,0.04165,106350.0,106340.0,0.51682151]
[1762204869371,0.04165,106350.0,106340.0,0.51782151]
[1762204871269,0.01926,106350.0,106340.0,0.51782151]
[1762204873364,0.32872,106360.0,106350.0,0.1393996]
[1762204873569,0.13976947,106370.0,106360.0,0.1529008]
[1762204873871,0.13976947,106370.0,106360.0,0.5137008]
[1762204874467,0.13976947,106370.0,106360.0,0.1529008]
[1762204875068,0.13976947,106370.0,106360.0,0.05886]
[1762204875570,0.2731501,106370.0,106360.0,0.05886]
[1762204876373,0.2731501,106370.0,106360.0,0.1529008]
[1762204877973,0.00108757,106370.0,106360.0,0.5137008]
[1762204878165,0.11672947,106370.0,106360.0,0.5137008]
[1762204878364,0.04391757,106370.0,106360.0,0.5137008]
[1762204879269,0.02269757,106370.0,106360.0,0.5137008]
[1762204879470,0.00108757,106370.0,106360.0,0.5137008]
[1762204879674,1e-08,106370.0,106360.0,0.64608143]
[1762204880063,1e-08,106370.0,106360.0,0.88112143]
[1762204880670,0.04283,106400.0,106390.0,0.1509642]
[1762204880973,0.17521063,106410.0,106400.0,0.1509554]
[1762204881172,0.41295388,106420.0,106410.0,0.1509466]
[1762204881372,0.48572158,106420.0,106410.0,0.4798266]
[1762204881576,0.50694158,106420.0,106410.0,0.38583]
[1762204881763,0.62999833,106420.0,106410.0,0.4798266]
[1762204881967,0.38241,106420.0,106410.0,0.4798266]
[1762204882169,0.26918953,106430.0,106420.0,0.1373277]
[1762204882376,0.1368089,106430.0,106420.0,0.1373277]
[1762204882574,0.26918953,106430.0,106420.0,0.04334]
[1762204883269,0.27218953,106430.0,106420.0,0.04334]
[1762204883469,0.27218953,106430.0,106420.0,0.1373278]
[1762204883664,0.1398089,106430.0,106420.0,0.1373278]
[1762204884270,0.27218953,106430.0,106420.0,0.1373278]
[1762204884668,0.28159544,106430.0,106420.0,0.1373278]
[1762204884874,0.04583,106430.0,106420.0,0.1373278]
[1762204885280,0.1398089,106430.0,106420.0,0.1373278]
[1762204885578,0.04583,106430.0,106420.0,0.1373278]
[1762204885971,0.003,106430.0,106420.0,0.1373278]
[1762204886274,0.003,106430.0,106420.0,0.4981278]
[1762204887969,0.1185889,106430.0,106420.0,0.04334]
[1762204888174,0.1185889,106430.0,106420.0,0.1373277]
[1762204888376,0.27430953,106430.0,106420.0,0.1373277]
[1762204888571,0.27130953,106430.0,106420.0,0.37226]
[1762204888775,0.27330953,106430.0,106420.0,0.4662477]
[1762204888980,0.17933063,106430.0,106420.0,0.4662477]
[1762204889581,0.05426,106420.0,106410.0,0.3608]
[1762204889884,0.1389554,106400.0,106390.0,0.04449]
[1762204890074,0.27133603,106400.0,106390.0,0.04449]
[1762204890477,0.33349446,106400.0,106390.0,0.04449]
[1762204890878,0.1389642,106390.0,106380.0,0.0581]
[1762204891077,0.70383347,106390.0,106380.0,0.04449]
[1762204891276,0.50929441,106390.0,106380.0,0.05711]
[1762204891477,0.70383347,106390.0,106380.0,0.05711]
[1762204891886,0.69430326,106390.0,106380.0,0.05711]
[1762204892279,0.1389731,106380.0,106370.0,0.37349]
[1762204892478,0.33351216,106380.0,106370.0,0.37349]
[1762204892678,0.04495,106380.0,106370.0,0.4675219]
[1762204893082,0.04495,106380.0,106370.0,0.8283219]
[1762204893282,0.60328906,106390.0,106380.0,0.1511331]
[1762204893573,0.00953675,106390.0,106380.0,0.5119331]
[1762204893776,0.28854936,106400.0,106390.0,0.04449]
[1762204893777,1.02321936,106400.0,106390.0,0.04449]
[1762204893986,0.66241936,106400.0,106390.0,0.04449]
[1762204894482,1.02321936,106400.0,106390.0,0.04449]
[1762204895183,0.8286803,106400.0,106390.0,0.04449]
[1762204895382,0.66241936,106400.0,106390.0,0.1385042]
[1762204895586,1.02721936,106400.0,106390.0,0.04449]
[1762204896085,0.66641936,106400.0,106390.0,0.1385042]
[1762204896289,1.02721936,106400.0,106390.0,0.04449]
[1762204896680,1.03540189,106400.0,106390.0,0.1385042]
[1762204896988,1.02621446,106400.0,106390.0,0.1385042]
[1762204897184,0.66541446,106400.0,106390.0,0.1385042]
[1762204897385,0.66541446,106400.0,106390.0,0.04449]
[1762204897593,0.66541446,106400.0,106390.0,0.1385042]
[1762204898791,0.04795,106400.0,106390.0,0.4993042]
[1762204899296,0.1419554,106400.0,106390.0,0.4993042]
[1762204899795,0.1419554,106400.0,106390.0,0.1385042]
[1762204900194,0.1419554,106400.0,106390.0,0.4993042]
[1762204902094,0.003,106400.0,106390.0,0.4993042]
[1762204902290,0.04495,106420.0,106410.0,0.1511066]
[1762204902788,0.1389378,106420.0,106410.0,0.1511066]
[1762204902991,0.69427686,106420.0,106410.0,0.05711]
[1762204903691,0.69427686,106420.0,106410.0,0.04449]
[1762204903996,0.1389466,106410.0,106400.0,0.4799554]
[1762204904195,0.69428566,106410.0,106400.0,0.4799554]
[1762204904894,0.69428566,106410.0,106400.0,0.38595]
[1762204905090,0.69428566,106410.0,106400.0,0.1511154]
[1762204905290,0.69428566,106410.0,106400.0,0.4799554]
[1762204905996,0.69528566,106410.0,106400.0,0.4799554]
[1762204906196,0.5007466,106410.0,106400.0,0.4799554]
[1762204906793,0.5007466,106410.0,106400.0,0.1511154]
[1762204906988,0.60128906,106410.0,106400.0,0.1511154]
[1762204907186,0.40675,106410.0,106400.0,0.1511154]
[1762204907388,0.04595,106410.0,106400.0,0.1511154]
[1762204907899,0.1399466,106410.0,106400.0,0.5119154]
[1762204909197,0.04595,106410.0,106400.0,0.5119154]
[1762204910895,0.001,106410.0,106400.0,0.5119154]
[1762204913407,0.001,106410.0,106400.0,0.52139211]
[1762204914197,0.34383756,106440.0,106430.0,0.0939789]
[1762204914390,0.73831237,106440.0,106430.0,0.0939789]
[1762204914603,0.73831077,106440.0,106430.0,0.1162289]
[1762204914797,0.35315867,106440.0,106430.0,0.0939789]
[1762204915001,0.04601,106440.0,106430.0,0.1521489]
[1762204915302,0.04601,106440.0,106430.0,0.4809089]
[1762204915502,0.05101,106440.0,106430.0,0.4809089]
[1762204915898,0.1449801,106440.0,106430.0,0.4809089]
[1762204916200,0.15443504,106440.0,106430.0,0.4809089]
[1762204916396,0.15443504,106440.0,106430.0,0.8417089]
[1762204916794,0.1449801,106440.0,106430.0,0.8417089]
[1762204916993,0.05101,106440.0,106430.0,0.8417089]
[1762204917202,0.005,106440.0,106430.0,0.8417089]
[1762204918502,0.003,106450.0,106440.0,0.1388001]
[1762204918707,0.1200912,106450.0,106440.0,0.1521401]
[1762204919309,0.1200912,106450.0,106440.0,0.5129401]
[1762204919310,0.02613,106450.0,106440.0,0.5129401]
[1762204919511,0.04901,106450.0,106440.0,0.5129401]
[1762204920110,0.1429713,106450.0,106440.0,0.5129401]
[1762204920307,0.04901,106450.0,106440.0,0.5129401]
[1762204920704,0.1439713,106450.0,106440.0,0.1521401]
[1762204920904,0.70877948,106450.0,106440.0,0.05817]
[1762204921110,0.71808948,106450.0,106440.0,0.37355]
[1762204921311,0.71808948,106450.0,106440.0,0.04483]
[1762204921510,0.004,106450.0,106440.0,0.5129401]
[1762204921711,0.004,106450.0,106440.0,0.1521401]
[1762204921922,0.004,106450.0,106440.0,0.5129401]
[1762204922120,0.004,106450.0,106440.0,0.1521401]
[1762204922623,0.004,106450.0,106440.0,0.5129401]
[1762204923920,0.4778677,106480.0,106470.0,0.04483]
[1762204924129,0.5007477,106480.0,106470.0,0.1521136]
[1762204924326,0.40681,106480.0,106470.0,0.1521136]
[1762204924628,0.51029161,106480.0,106470.0,0.05817]
[1762204925224,0.38793,106480.0,106470.0,0.1521137]
[1762204925423,0.004,106480.0,106470.0,0.1521137]
[1762204925630,0.004,106480.0,106470.0,0.5129137]
[1762204926132,0.15314306,106480.0,106470.0,0.05817]
[1762204926330,0.1439448,106480.0,106470.0,0.1521136]
[1762204926531,0.15345694,106480.0,106470.0,0.5129136]
[1762204926729,0.05001,106480.0,106470.0,0.5129136]
[1762204927220,0.05001,106480.0,106470.0,0.1521136]
[1762204927427,0.004,106480.0,106470.0,0.5129136]
[1762204928929,0.003,106490.0,106470.0,0.5129136]
[1762204928930,0.3608,106510.0,106500.0,0.05817]
[1762204929132,0.41637076,106520.0,106510.0,0.1520783]
[1762204929331,0.38393,106520.0,106510.0,0.1520783]
[1762204929538,0.3608,106520.0,106510.0,0.1520783]
[1762204929727,0.4546995,106520.0,106510.0,0.1520783]
[1762204930033,0.5007095,106520.0,106510.0,0.1520783]
[1762204930334,0.3608,106520.0,106510.0,0.1520783]
[1762204930633,0.38693,106520.0,106510.0,0.1520783]
[1762204930836,0.1200296,106520.0,106510.0,0.1520783]
[1762204931030,0.1429096,106520.0,106510.0,0.1520783]
[1762204931228,0.04901,106520.0,106510.0,0.1520783]
[1762204931424,0.04901,106520.0,106510.0,0.5128783]
[1762204931832,0.1429096,106520.0,106510.0,0.5128784]
[1762204932033,0.003,106520.0,106510.0,0.5128784]
[1762204932234,0.02613,106520.0,106510.0,0.5128784]
[1762204932434,0.1200296,106520.0,106510.0,0.5128784]
[1762204932630,0.04901,106520.0,106510.0,0.5128784]
[1762204933738,0.003,106520.0,106510.0,0.5128784]
[1762204935133,0.00812,106560.0,106550.0,0.04608]
[1762204935134,0.5070546,106560.0,106550.0,0.04608]
[1762204935437,0.5070546,106560.0,106550.0,0.1477132]
[1762204935438,0.40507,106560.0,106550.0,0.1477132]
[1762204935631,0.4989344,106560.0,106550.0,0.05384]
[1762204935832,0.4989344,106560.0,106550.0,0.1477132]
[1762204937045,0.04427,106560.0,106550.0,0.1477132]
[1762204937340,0.40807,106570.0,106560.0,0.1399444]
[1762204937543,0.40807,106570.0,106560.0,0.4684244]
[1762204937837,0.38671,106570.0,106560.0,0.4684244]
[1762204938142,0.003,106570.0,106560.0,0.8292244]
[1762204939238,0.00104658,106570.0,106560.0,1.0638244]
[1762204939728,0.00104658,106570.0,106560.0,1.25836346]
[1762204939934,0.00104658,106570.0,106560.0,1.0638244]
[1762204940840,0.00104658,106570.0,106560.0,1.0678244]
[1762204941343,0.00104658,106570.0,106560.0,1.26236346]
[1762204941546,0.42742098,106600.0,106590.0,0.1399178]
[1762204941750,0.3638,106610.0,106600.0,0.152789]
[1762204941936,0.38671,106610.0,106600.0,0.152789]
[1762204942240,0.02591,106610.0,106600.0,0.152789]
[1762204942432,0.003,106610.0,106600.0,0.152789]
[1762204942632,0.003,106610.0,106600.0,0.513589]
[1762204942838,0.003,106610.0,106600.0,0.94264806]
[1762204943137,0.40507,106640.0,106630.0,0.1398827]
[1762204943338,0.38671,106650.0,106640.0,0.1527538]
[1762204943535,0.40807,106650.0,106640.0,0.1527538]
[1762204943935,0.3638,106650.0,106640.0,0.1527538]
[1762204944336,0.003,106650.0,106640.0,0.1527538]
[1762204944541,0.02591,106650.0,106640.0,0.05896]
[1762204944840,0.119695,106650.0,106640.0,0.1527538]
[1762204945036,0.119695,106650.0,106640.0,0.05896]
[1762204945335,0.501855,106650.0,106640.0,0.38724]
[1762204945638,0.501855,106650.0,106640.0,0.72475852]
[1762204945639,0.003,106650.0,106640.0,0.72475852]
[1762204945836,0.003,106650.0,106640.0,1.08555852]
[1762204946430,0.39283851,106680.0,106670.0,0.02283]
[1762204946633,0.41419851,106680.0,106670.0,0.04608]
[1762204946841,0.50795721,106680.0,106670.0,0.04608]
[1762204947138,0.3608,106680.0,106670.0,0.04608]
[1762204947342,0.40807,106690.0,106680.0,0.05896]
[1762204947637,0.40807,106690.0,106680.0,0.04608]
[1762204948034,0.60260906,106690.0,106680.0,0.1398387]
[1762204948336,0.41741207,106690.0,106680.0,0.1529287]
[1762204948541,0.04253,106680.0,106670.0,0.1380775]
[1762204948742,0.40333,106680.0,106670.0,0.4666375]
[1762204949042,0.60086906,106690.0,106680.0,0.1511587]
[1762204949247,0.60086906,106690.0,106680.0,0.1531587]
[1762204949744,0.69461896,106690.0,106680.0,0.04431]
[1762204950137,0.61036076,106690.0,106680.0,0.1380687]
[1762204950340,0.64148978,106690.0,106680.0,0.1380687]
[1762204950644,0.64148978,106690.0,106680.0,0.04431]
[1762204951242,0.1453187,106680.0,106670.0,0.04631]
[1762204951447,0.1352975,106670.0,106660.0,0.04431]
[1762204951744,0.62801568,106670.0,106660.0,0.04431]
[1762204951954,0.62801568,106670.0,106660.0,0.1511763]
[1762204951955,0.4960975,106670.0,106660.0,0.1511763]
[1762204952244,0.62801568,106670.0,106660.0,0.04431]
[1762204952444,0.1363093,106660.0,106650.0,0.04431]
[1762204952648,0.62702748,106660.0,106650.0,0.1380951]
[1762204952950,0.53524818,106660.0,106650.0,0.1380951]
[1762204953139,0.17244818,106660.0,106650.0,0.1380951]
[1762204953438,0.63691448,106660.0,106650.0,0.1380951]
[1762204953640,0.62702448,106660.0,106650.0,0.1380951]
[1762204953843,0.53324818,106660.0,106650.0,0.1380951]
[1762204954038,0.01912,106660.0,106650.0,0.4988951]
[1762204954346,0.38192,106670.0,106660.0,0.1511763]
[1762204954545,0.40333,106670.0,106660.0,0.1511763]
[1762204955243,0.62901568,106670.0,106660.0,0.1511763]
[1762204955434,0.62901568,106670.0,106660.0,0.1380863]
[1762204955640,0.1363063,106660.0,106650.0,0.1380884]
[1762204955835,0.17444818,106660.0,106650.0,0.4988884]
[1762204956242,0.04253,106660.0,106650.0,0.4988884]
[1762204956442,0.17444818,106660.0,106650.0,0.4988884]
[1762204956644,0.04253,106660.0,106650.0,0.4988884]
[1762204957948,0.04253,106670.0,106660.0,0.1511763]
[1762204958151,0.04253,106670.0,106660.0,0.5119763]
[1762204958450,0.62901568,106670.0,106660.0,0.0574]
[1762204958748,0.1363063,106660.0,106650.0,0.1380895]
[1762204959146,0.17444818,106660.0,106650.0,0.1380895]
[1762204959758,0.1363151,106650.0,106640.0,0.1380971]
[1762204960048,0.62903328,106650.0,106640.0,0.1511871]
[1762204960248,0.40333,106650.0,106640.0,0.1511871]
[1762204960451,0.04253,106650.0,106640.0,0.1511871]
[1762204961440,0.36976,106660.0,106640.0,0.1511871]
[1762204961645,0.18340818,106660.0,106650.0,0.1380951]
[1762204961841,0.04253,106660.0,106650.0,0.1380951]
[1762204962145,0.04253,106660.0,106650.0,0.4666151]
[1762204962747,0.02112,106660.0,106650.0,0.4666151]
[1762204962949,0.17444818,106660.0,106650.0,0.8274151]
[1762204963151,0.17444818,106660.0,106650.0,0.4666151]
[1762204963544,0.3608,106670.0,106650.0,0.8274151]
[1762204963747,0.53524818,106680.0,106670.0,0.1380775]
[1762204963952,0.02112,106680.0,106670.0,0.4988775]
[1762204964145,0.17444818,106680.0,106670.0,0.8274775]
[1762204964652,0.86760818,106690.0,106680.0,0.1512187]
[1762204964952,0.73569,106690.0,106680.0,0.1512187]
[1762204965142,0.96135808,106690.0,106680.0,0.1380987]
[1762204965343,0.1412987,106680.0,106670.0,0.4667003]
[1762204965640,0.63401688,106680.0,106670.0,0.1381075]
[1762204965842,0.63401688,106680.0,106670.0,0.04434]
[1762204966042,0.63401688,106680.0,106670.0,0.1381075]
[1762204966238,0.63401688,106680.0,106670.0,0.04434]
[1762204966649,0.63401688,106680.0,106670.0,0.1381075]
[1762204966847,0.1371375,106670.0,106660.0,0.05743]
[1762204967052,0.04337,106660.0,106650.0,0.4989195]
[1762204967242,0.17528818,106660.0,106650.0,0.4989195]
[1762204967438,0.17528818,106660.0,106650.0,0.1381195]
[1762204967636,0.7830919,106670.0,106660.0,0.1381163]
[1762204967637,0.38209,106670.0,106660.0,0.1381163]
[1762204967847,0.95833568,106670.0,106660.0,0.1381163]
[1762204968247,0.1371463,106660.0,106650.0,0.13812]
[1762204968548,0.17528818,106660.0,106650.0,0.13812]
[1762204968752,0.04337,106660.0,106650.0,0.13812]
[1762204968949,0.40417,106660.0,106650.0,0.13812]
[1762204969155,0.04337,106660.0,106650.0,0.13812]
[1762204969454,0.1371463,106660.0,106650.0,0.13812]
[1762204969656,0.62986448,106660.0,106650.0,0.13812]
[1762204969854,0.18834818,106660.0,106650.0,0.13812]
[1762204970359,0.04337,106660.0,106650.0,0.49892]
[1762204970552,0.04337,106660.0,106650.0,0.13812]
[1762204970751,0.04337,106660.0,106650.0,0.49892]
[1762204972150,0.02129,106680.0,106670.0,0.04434]
[1762204972363,0.04418666,106680.0,106670.0,0.1381075]
[1762204972658,0.02129,106680.0,106670.0,0.1381075]
[1762204973055,0.82447818,106690.0,106680.0,0.1512187]
[1762204973056,0.003,106690.0,106680.0,0.1512187]
[1762204973260,0.003,106690.0,106680.0,0.5120187]
[1762204974864,0.003,106690.0,106680.0,0.5130187]
[1762204975658,0.003,106690.0,106680.0,0.64493688]
[1762204975965,0.3316,106690.0,106680.0,0.5130187]
[1762204976156,0.003,106690.0,106680.0,0.87925688]
[1762204976459,1e-07,106690.0,106680.0,1.20785688]
[1762204976765,1e-07,106690.0,106680.0,1.27526831]
[1762204977862,1e-07,106690.0,106680.0,1.40718649]
[1762204978047,0.4575152,106730.0,106720.0,0.0937235]
[1762204978357,0.8293648,106730.0,106720.0,0.1511835]
[1762204978555,0.5008848,106730.0,106720.0,0.1511835]
[1762204978752,0.83852689,106730.0,106720.0,0.1511835]
[1762204979159,0.83852689,106730.0,106720.0,0.05746]
[1762204979355,0.41633209,106730.0,106720.0,0.1511835]
[1762204979548,0.02429,106730.0,106720.0,0.5119835]
[1762204979862,0.4464448,106730.0,106720.0,0.5119835]
[1762204980052,0.35273,106730.0,106720.0,0.5119835]
[1762204980453,0.35573,106730.0,106720.0,0.5119835]
[1762204980659,0.3344,106730.0,106720.0,0.5119835]
[1762204980863,0.003,106730.0,106720.0,0.97230168]
[1762204981055,1e-07,106730.0,106720.0,1.10421986]
[1762204981250,1e-07,106730.0,106720.0,1.3888952]
[1762204981562,1e-07,106730.0,106720.0,1.49940573]
[1762204982166,1e-07,106730.0,106720.0,1.50878443]
[1762204982352,0.3638,106770.0,106760.0,0.1511484]
[1762204982353,0.003,106770.0,106760.0,0.1511484]
[1762204982552,0.003,106770.0,106760.0,0.64386658]
[1762204982766,0.003,106770.0,106760.0,0.87802658]
[1762204983960,0.004,106770.0,106760.0,0.87802658]
[1762204984155,0.04337,106800.0,106790.0,0.1380021]
[1762204984361,0.8389576,106810.0,106800.0,0.04434]
[1762204984763,0.1030172,106800.0,106780.0,0.1511309]
[1762204984962,0.63910148,106800.0,106790.0,0.02171]
[1762204985165,0.63910148,106800.0,106790.0,0.04434]
[1762204985467,0.4978233,106800.0,106790.0,0.04434]
[1762204985671,0.4978233,106800.0,106790.0,0.1380021]
[1762204985672,0.04337,106800.0,106790.0,0.1380021]
[1762204986158,0.38509,106810.0,106800.0,0.1511133]
[1762204986353,0.004,106810.0,106800.0,0.1511133]
[1762204986562,0.004,106810.0,106800.0,0.64383148]
[1762204986768,0.004,106810.0,106800.0,0.65338339]
[1762204986965,0.003,106810.0,106800.0,0.88746339]
[1762204987267,0.3608,106840.0,106830.0,0.137967]
[1762204987565,0.5007795,106850.0,106840.0,0.05746]
[1762204987765,0.50996119,106850.0,106840.0,0.05746]
[1762204987977,0.41635169,106850.0,106840.0,0.1510783]
[1762204988273,0.5007795,106850.0,106840.0,0.05746]
[1762204988462,0.5007795,106850.0,106830.0,0.68968]
[1762204988769,0.64206648,106840.0,106830.0,0.32888]
[1762204988963,0.5101483,106840.0,106830.0,0.04434]
[1762204989358,0.04337,106840.0,106830.0,0.04434]
[1762204989556,0.04337,106840.0,106830.0,0.1379671]
[1762204989765,0.4977883,106840.0,106830.0,0.04434]
[1762204989970,0.62970648,106840.0,106830.0,0.04434]
[1762204990168,0.04337,106830.0,106820.0,0.04434]
[1762204990468,0.1370058,106820.0,106810.0,0.3737]
[1762204990857,0.04337,106810.0,106800.0,0.5119134]
[1762204991055,0.02129,106810.0,106800.0,0.5119134]
[1762204991269,0.40417,106820.0,106810.0,0.1379846]
[1762204991469,0.4978058,106820.0,106810.0,0.1389846]
[1762204991667,0.64278398,106820.0,106810.0,0.04534]
[1762204991966,0.40417,106820.0,106810.0,0.1389846]
[1762204992269,0.497797,106830.0,106820.0,0.04434]
[1762204992456,0.497797,106830.0,106820.0,0.1379758]
[1762204992660,0.40417,106830.0,106820.0,0.1379758]
[1762204993056,0.40417,106830.0,106820.0,0.04434]
[1762204993057,0.62971518,106830.0,106820.0,0.04434]
[1762204993259,0.1500658,106820.0,106810.0,0.37354]
[1762204993463,0.1500658,106820.0,106800.0,0.1511133]
[1762204993464,0.1370146,106810.0,106800.0,0.1511133]
[1762204993670,0.26893278,106810.0,106800.0,0.1511133]
[1762204993863,0.17528818,106810.0,106800.0,0.1511133]
[1762204994061,0.04337,106810.0,106800.0,0.1511133]
[1762204994460,0.41828,106820.0,106810.0,0.1390346]
[1762204996073,0.64383398,106820.0,106810.0,0.1390346]
[1762204996281,0.64383398,106820.0,106810.0,0.1160346]
[1762204996575,0.04442,106810.0,106800.0,0.152159]
[1762204996774,0.26998278,106810.0,106800.0,0.05851]
[1762204996968,0.04442,106800.0,106790.0,0.4686448]
[1762204997163,0.1380733,106800.0,106790.0,0.3749896]
[1762204997368,0.64353148,106800.0,106790.0,0.4686517]
[1762204997976,0.04442,106800.0,106790.0,0.8294517]
[1762204998275,0.1508133,106800.0,106790.0,0.8294517]
[1762204998575,0.5116133,106800.0,106790.0,0.3749896]
[1762204998779,0.5116133,106800.0,106790.0,0.0001196]
[1762204998780,0.65286204,106800.0,106790.0,0.0001196]
[1762204999070,0.65186204,106800.0,106790.0,0.0001196]
[1762204999261,0.64253148,106800.0,106790.0,0.0937817]
[1762204999666,0.64253148,106800.0,106790.0,0.0001196]
[1762205000170,0.54887818,106800.0,106790.0,0.1391717]
[1762205000574,0.64253148,106800.0,106790.0,0.1391717]
[1762205000774,0.64253148,106800.0,106790.0,0.1161717]
[1762205001269,0.64253148,106800.0,106790.0,0.0001196]
[1762205001672,0.54887818,106800.0,106790.0,0.1391717]
[1762205001867,0.54887818,106800.0,106790.0,0.1161717]
[1762205002376,0.18807818,106800.0,106790.0,0.1161717]
[1762205002674,0.64253158,106800.0,106790.0,0.0937817]
[1762205003274,0.64253158,106800.0,106790.0,0.0001196]
[1762205003673,0.54887818,106800.0,106790.0,0.1391717]
[1762205004270,0.41696,106800.0,106790.0,0.1391717]
[1762205004471,0.54887818,106800.0,106790.0,0.1161717]
[1762205004671,0.54887818,106800.0,106790.0,0.1391717]
[1762205004872,0.64253158,106800.0,106790.0,0.1391717]
[1762205005176,0.54887818,106800.0,106790.0,0.1391717]
[1762205005779,0.64253148,106800.0,106790.0,0.0001196]
[1762205006379,1.00852966,106800.0,106790.0,0.0001196]
[1762205006584,0.87661148,106800.0,106790.0,0.0001196]
[1762205006972,1.00852966,106800.0,106790.0,0.0001196]
[1762205007676,0.87661148,106800.0,106790.0,0.0001196]
[1762205008574,1.00852966,106800.0,106790.0,0.0001196]
[1762205009084,0.1379797,106770.0,106760.0,0.44922165]
[1762205009276,0.26989788,106770.0,106760.0,0.44922165]
[1762205009475,0.63069788,106770.0,106760.0,0.35553665]
[1762205009680,0.63069788,106770.0,106760.0,0.44922515]
[1762205010081,0.40521427,106770.0,106760.0,0.44922515]
[1762205010680,0.36091427,106770.0,106760.0,0.44922515]
[1762205010883,0.40647427,106770.0,106760.0,0.44922515]
[1762205011182,0.36091427,106770.0,106760.0,0.44922515]
[1762205011382,0.00011427,106770.0,106760.0,0.81102515]
[1762205012180,4.27e-06,106770.0,106760.0,0.81102515]
[1762205012387,4.27e-06,106770.0,106760.0,0.81002515]
[1762205012879,0.04556427,106770.0,106760.0,0.81002515]
[1762205014389,0.02257427,106770.0,106760.0,0.81002515]
[1762205015075,0.64760123,106790.0,106780.0,0.01288]